[Event "Titled Tuesday Blitz March 21 Early 2023"]
[White "Alekseenko, Kirill"]
[Black "Real_OceanStorm"]
[WhiteFideId "4135539"]
[WhiteElo "2683"]
[BlackElo "2817"]
[Result "1-0"]
[Round "03"]
[TimeControl "180+2"]
[Date "2023.03.21"]
[WhiteClock "0:00:21"]
[BlackClock "0:00:04"]

1. d4 {[%clk 0:03:00]}  Nf6 {[%clk 0:02:59]} 2. Nc3 {[%clk 0:03:01]}  e6 {[%clk 0:03:00]} 3. Bf4 {[%clk 0:03:01]}  d5 {[%clk 0:03:01]} 4. Nb5 {[%clk 0:03:02]}  Na6 {[%clk 0:03:00]} 5. e3 {[%clk 0:03:02]}  c6 {[%clk 0:03:01]} 6. Nc3 {[%clk 0:03:01]}  Qb6 {[%clk 0:03:00]} 7. a3 {[%clk 0:02:59]}  Ne4 {[%clk 0:02:58]} 8. Nxe4 {[%clk 0:02:57]}  dxe4 {[%clk 0:02:59]} 9. Rb1 {[%clk 0:02:49]}  Be7 {[%clk 0:02:57]} 10. Ne2 {[%clk 0:02:45]}  O-O {[%clk 0:02:57]} 11. Nc3 {[%clk 0:02:45]}  f5 {[%clk 0:02:56]} 12. g4 {[%clk 0:02:35]}  Nc7 {[%clk 0:02:38]} 13. gxf5 {[%clk 0:02:35]}  exf5 {[%clk 0:02:39]} 14. Bc4+ {[%clk 0:02:35]}  Be6 {[%clk 0:02:37]} 15. Bxc7 {[%clk 0:02:34]}  Qxc7 {[%clk 0:02:06]} 16. Bxe6+ {[%clk 0:02:34]}  Kh8 {[%clk 0:02:07]} 17. Ne2 {[%clk 0:02:29]}  g5 {[%clk 0:02:07]} 18. Qd2 {[%clk 0:02:25]}  Rf6 {[%clk 0:02:04]} 19. Bb3 {[%clk 0:02:22]}  Raf8 {[%clk 0:02:05]} 20. Nc3 {[%clk 0:02:15]}  f4 {[%clk 0:02:06]} 21. Nxe4 {[%clk 0:02:04]}  fxe3 {[%clk 0:02:06]} 22. fxe3 {[%clk 0:01:45]}  Rf3 {[%clk 0:02:03]} 23. Ke2 {[%clk 0:01:37]}  Rh3 {[%clk 0:01:27]} 24. Kd3 {[%clk 0:01:19]}  c5 {[%clk 0:01:18]} 25. d5 {[%clk 0:01:08]}  b5 {[%clk 0:00:58]} 26. c4 {[%clk 0:01:06]}  Rff3 {[%clk 0:00:54]} 27. Rbe1 {[%clk 0:01:02]}  Qf4 {[%clk 0:00:53]} 28. cxb5 {[%clk 0:00:43]}  Bf8 {[%clk 0:00:23]} 29. Qc3+ {[%clk 0:00:33]}  Bg7 {[%clk 0:00:23]} 30. Qxc5 {[%clk 0:00:34]}  Rh4 {[%clk 0:00:15]} 31. Qc8+ {[%clk 0:00:33]}  Bf8 {[%clk 0:00:15]} 32. Qe6 {[%clk 0:00:27]}  Rh6 {[%clk 0:00:07]} 33. Qe8 {[%clk 0:00:21]}  Rhh3 {[%clk 0:00:04]} 34. Ng3 {[%clk 0:00:21]} 1-0


[Site "https://www.chess.com"]

[Event "Titled Tuesday Blitz March 21 Early 2023"]
[White "Praggnanandhaa R"]
[Black "Seo, Jung Min"]
[WhiteFideId "25059530"]
[BlackFideId "1734687"]
[WhiteElo "2623"]
[BlackElo "2468"]
[Result "0-1"]
[Round "03"]
[TimeControl "180+2"]
[Date "2023.03.21"]
[WhiteClock "0:00:01"]
[BlackClock "0:01:03"]

1. e4 {[%clk 0:03:00]}  c5 {[%clk 0:02:59]} 2. Nf3 {[%clk 0:03:00]}  e6 {[%clk 0:02:59]} 3. Be2 {[%clk 0:02:57]}  Nc6 {[%clk 0:02:59]} 4. O-O {[%clk 0:02:57]}  Nf6 {[%clk 0:02:58]} 5. Nc3 {[%clk 0:02:55]}  Be7 {[%clk 0:02:58]} 6. d4 {[%clk 0:02:50]}  cxd4 {[%clk 0:02:58]} 7. Nxd4 {[%clk 0:02:51]}  O-O {[%clk 0:02:58]} 8. Be3 {[%clk 0:02:46]}  d6 {[%clk 0:02:57]} 9. f4 {[%clk 0:02:46]}  a6 {[%clk 0:02:55]} 10. Kh1 {[%clk 0:02:43]}  Bd7 {[%clk 0:02:48]} 11. a4 {[%clk 0:02:32]}  Nxd4 {[%clk 0:02:46]} 12. Bxd4 {[%clk 0:02:31]}  Bc6 {[%clk 0:02:47]} 13. Bd3 {[%clk 0:02:31]}  Nd7 {[%clk 0:02:46]} 14. Qe1 {[%clk 0:02:23]}  Nc5 {[%clk 0:02:37]} 15. Rd1 {[%clk 0:02:22]}  Nxd3 {[%clk 0:02:36]} 16. Rxd3 {[%clk 0:02:22]}  b5 {[%clk 0:02:25]} 17. f5 {[%clk 0:01:21]}  exf5 {[%clk 0:02:12]} 18. Rxf5 {[%clk 0:01:18]}  bxa4 {[%clk 0:01:50]} 19. Nd5 {[%clk 0:01:03]}  Bxd5 {[%clk 0:01:49]} 20. exd5 {[%clk 0:01:03]}  g6 {[%clk 0:01:41]} 21. Rf4 {[%clk 0:00:47]}  Bg5 {[%clk 0:01:38]} 22. Re4 {[%clk 0:00:44]}  Bf6 {[%clk 0:01:36]} 23. h3 {[%clk 0:00:39]}  Bxd4 {[%clk 0:01:33]} 24. Rdxd4 {[%clk 0:00:37]}  Rb8 {[%clk 0:01:34]} 25. Rb4 {[%clk 0:00:37]}  a5 {[%clk 0:01:28]} 26. Rxb8 {[%clk 0:00:32]}  Qxb8 {[%clk 0:01:28]} 27. Qa1 {[%clk 0:00:32]}  Qb5 {[%clk 0:01:27]} 28. Rxa4 {[%clk 0:00:32]}  Qxd5 {[%clk 0:01:23]} 29. Rxa5 {[%clk 0:00:32]}  Qd2 {[%clk 0:01:22]} 30. c3 {[%clk 0:00:29]}  Kg7 {[%clk 0:01:17]} 31. Ra4 {[%clk 0:00:04]}  Re8 {[%clk 0:01:17]} 32. Rd4 {[%clk 0:00:04]}  Re1+ {[%clk 0:01:13]} 33. Kh2 {[%clk 0:00:04]}  Qe3 {[%clk 0:01:11]} 34. Qa8 {[%clk 0:00:01]}  Qg1+ {[%clk 0:01:04]} 35. Kg3 {[%clk 0:00:01]}  Re3+ {[%clk 0:01:04]} 36. Kg4 {[%clk 0:00:01]}  h5+ {[%clk 0:01:03]} 0-1


[Site "https://www.chess.com"]

[Event "Titled Tuesday Blitz March 21 Early 2023"]
[White "Kosteniuk, Alexandra"]
[Black "Tari, Aryan"]
[WhiteFideId "4128125"]
[BlackFideId "1510045"]
[WhiteElo "2453"]
[BlackElo "2583"]
[Result "1-0"]
[Round "03"]
[TimeControl "180+2"]
[Date "2023.03.21"]
[WhiteClock "0:00:19"]
[BlackClock "0:00:13"]

1. e4 {[%clk 0:03:00]}  c6 {[%clk 0:02:54]} 2. Nc3 {[%clk 0:02:59]}  d5 {[%clk 0:02:55]} 3. Nf3 {[%clk 0:02:59]}  dxe4 {[%clk 0:02:47]} 4. Nxe4 {[%clk 0:02:59]}  Nf6 {[%clk 0:02:48]} 5. Qe2 {[%clk 0:02:56]}  Na6 {[%clk 0:02:47]} 6. Nxf6+ {[%clk 0:02:44]}  gxf6 {[%clk 0:02:46]} 7. h3 {[%clk 0:02:40]}  Rg8 {[%clk 0:02:21]} 8. d4 {[%clk 0:02:33]}  Nb4 {[%clk 0:02:16]} 9. a3 {[%clk 0:02:19]}  Qa5 {[%clk 0:02:14]} 10. c3 {[%clk 0:02:13]}  Nd5 {[%clk 0:02:12]} 11. Bd2 {[%clk 0:02:12]}  Qb6 {[%clk 0:02:03]} 12. O-O-O {[%clk 0:02:07]}  Bf5 {[%clk 0:01:48]} 13. g4 {[%clk 0:01:57]}  Bg6 {[%clk 0:01:48]} 14. Nh4 {[%clk 0:01:52]}  e6 {[%clk 0:01:48]} 15. Nxg6 {[%clk 0:01:43]}  hxg6 {[%clk 0:01:48]} 16. c4 {[%clk 0:01:38]}  Nc7 {[%clk 0:01:44]} 17. Bc3 {[%clk 0:01:37]}  Qb3 {[%clk 0:01:26]} 18. Qc2 {[%clk 0:01:21]}  Qxc2+ {[%clk 0:01:25]} 19. Kxc2 {[%clk 0:01:21]}  Bd6 {[%clk 0:01:17]} 20. Bg2 {[%clk 0:01:20]}  Ke7 {[%clk 0:01:13]} 21. Rhe1 {[%clk 0:01:20]}  g5 {[%clk 0:01:12]} 22. b4 {[%clk 0:01:16]}  a5 {[%clk 0:01:08]} 23. b5 {[%clk 0:01:13]}  cxb5 {[%clk 0:00:51]} 24. c5 {[%clk 0:01:13]}  Bf4 {[%clk 0:00:51]} 25. Bxb7 {[%clk 0:01:00]}  Ra7 {[%clk 0:00:43]} 26. Bc6 {[%clk 0:00:56]}  Rh8 {[%clk 0:00:39]} 27. d5 {[%clk 0:00:50]}  Nxd5 {[%clk 0:00:29]} 28. Rxd5 {[%clk 0:00:39]}  Rxh3 {[%clk 0:00:30]} 29. Bxb5 {[%clk 0:00:36]}  Rf3 {[%clk 0:00:26]} 30. c6 {[%clk 0:00:31]}  Rxf2+ {[%clk 0:00:25]} 31. Kb3 {[%clk 0:00:31]}  Rf3 {[%clk 0:00:23]} 32. Rd3 {[%clk 0:00:22]}  a4+ {[%clk 0:00:24]} 33. Kc4 {[%clk 0:00:19]}  Rf2 {[%clk 0:00:20]} 34. Bb4+ {[%clk 0:00:18]}  Ke8 {[%clk 0:00:13]} 35. c7# {[%clk 0:00:19]} 1-0


[Site "https://www.chess.com"]

[Event "Titled Tuesday Blitz March 21 Early 2023"]
[White "Csonka, Balazs"]
[Black "Esipenko, Andrey"]
[WhiteFideId "742910"]
[BlackFideId "24175439"]
[WhiteElo "2404"]
[BlackElo "2615"]
[Result "0-1"]
[Round "03"]
[TimeControl "180+2"]
[Date "2023.03.21"]
[WhiteClock "0:00:03"]
[BlackClock "0:00:18"]

1. d4 {[%clk 0:03:00]}  Nf6 {[%clk 0:02:58]} 2. c4 {[%clk 0:03:00]}  e6 {[%clk 0:02:58]} 3. Nc3 {[%clk 0:02:59]}  d5 {[%clk 0:02:57]} 4. Bg5 {[%clk 0:02:57]}  Be7 {[%clk 0:02:57]} 5. e3 {[%clk 0:02:57]}  O-O {[%clk 0:02:56]} 6. Nf3 {[%clk 0:02:58]}  h6 {[%clk 0:02:55]} 7. Bh4 {[%clk 0:02:56]}  b6 {[%clk 0:02:55]} 8. Bxf6 {[%clk 0:02:55]}  Bxf6 {[%clk 0:02:55]} 9. cxd5 {[%clk 0:02:56]}  exd5 {[%clk 0:02:56]} 10. b4 {[%clk 0:02:56]}  c6 {[%clk 0:02:55]} 11. Bd3 {[%clk 0:02:47]}  Re8 {[%clk 0:02:55]} 12. O-O {[%clk 0:02:46]}  Bb7 {[%clk 0:02:55]} 13. Qc2 {[%clk 0:02:42]}  Nd7 {[%clk 0:02:54]} 14. Rfc1 {[%clk 0:02:37]}  a5 {[%clk 0:02:47]} 15. bxa5 {[%clk 0:02:29]}  Rxa5 {[%clk 0:02:45]} 16. Rab1 {[%clk 0:02:29]}  Ra3 {[%clk 0:02:38]} 17. Bh7+ {[%clk 0:02:17]}  Kh8 {[%clk 0:02:37]} 18. Bf5 {[%clk 0:02:18]}  b5 {[%clk 0:02:10]} 19. Bxd7 {[%clk 0:01:49]}  Qxd7 {[%clk 0:02:09]} 20. Ne2 {[%clk 0:01:50]}  Rea8 {[%clk 0:01:56]} 21. Rb2 {[%clk 0:01:49]}  R8a4 {[%clk 0:01:53]} 22. Nf4 {[%clk 0:01:33]}  Rc4 {[%clk 0:01:28]} 23. Qb1 {[%clk 0:01:33]}  Bc8 {[%clk 0:01:10]} 24. h3 {[%clk 0:01:02]}  Qa7 {[%clk 0:01:06]} 25. g4 {[%clk 0:00:43]}  g6 {[%clk 0:00:56]} 26. Rd2 {[%clk 0:00:32]}  Bd7 {[%clk 0:00:46]} 27. Nd3 {[%clk 0:00:29]}  Kg7 {[%clk 0:00:41]} 28. Nfe5 {[%clk 0:00:26]}  Be6 {[%clk 0:00:21]} 29. Nxc4 {[%clk 0:00:11]}  dxc4 {[%clk 0:00:22]} 30. Nc5 {[%clk 0:00:12]}  Bd5 {[%clk 0:00:20]} 31. e4 {[%clk 0:00:07]}  Bg5 {[%clk 0:00:20]} 32. Rcd1 {[%clk 0:00:04]}  Bxd2 {[%clk 0:00:19]} 33. Rxd2 {[%clk 0:00:05]}  c3 {[%clk 0:00:20]} 34. Rc2 {[%clk 0:00:03]}  Bxa2 {[%clk 0:00:20]} 35. Qc1 {[%clk 0:00:03]}  b4 {[%clk 0:00:21]} 36. e5 {[%clk 0:00:03]}  Bd5 {[%clk 0:00:20]} 37. Qf4 {[%clk 0:00:03]}  Qe7 {[%clk 0:00:21]} 38. Re2 {[%clk 0:00:02]}  Ra1+ {[%clk 0:00:19]} 39. Kh2 {[%clk 0:00:03]}  Rh1+ {[%clk 0:00:17]} 40. Kg3 {[%clk 0:00:03]}  Rg1+ {[%clk 0:00:17]} 41. Kh2 {[%clk 0:00:03]}  Rg2+ {[%clk 0:00:18]} 0-1


[Site "https://www.chess.com"]

[Event "Titled Tuesday Blitz March 21 Early 2023"]
[White "Sjugirov, Sanan"]
[Black "Fernandez Guillen, Ernesto J."]
[WhiteFideId "4189302"]
[BlackFideId "3512428"]
[WhiteElo "2569"]
[BlackElo "2423"]
[Result "1-0"]
[Round "03"]
[TimeControl "180+2"]
[Date "2023.03.21"]
[WhiteClock "0:00:15"]
[BlackClock "0:00:09"]

1. d4 {[%clk 0:03:00]}  Nf6 {[%clk 0:02:59]} 2. c4 {[%clk 0:03:01]}  g6 {[%clk 0:02:59]} 3. Nc3 {[%clk 0:03:01]}  d6 {[%clk 0:03:00]} 4. e4 {[%clk 0:03:01]}  Bg7 {[%clk 0:03:01]} 5. Nf3 {[%clk 0:03:02]}  O-O {[%clk 0:03:01]} 6. Be2 {[%clk 0:03:03]}  e5 {[%clk 0:03:01]} 7. O-O {[%clk 0:03:03]}  Nc6 {[%clk 0:03:01]} 8. d5 {[%clk 0:03:04]}  Ne7 {[%clk 0:03:02]} 9. b4 {[%clk 0:03:04]}  Ne8 {[%clk 0:03:03]} 10. a4 {[%clk 0:02:59]}  f5 {[%clk 0:03:02]} 11. a5 {[%clk 0:03:00]}  f4 {[%clk 0:03:02]} 12. c5 {[%clk 0:02:58]}  h6 {[%clk 0:03:00]} 13. Nd2 {[%clk 0:02:45]}  Rf7 {[%clk 0:02:59]} 14. Nc4 {[%clk 0:02:41]}  Bf8 {[%clk 0:02:59]} 15. b5 {[%clk 0:02:40]}  h5 {[%clk 0:02:49]} 16. Ba3 {[%clk 0:02:37]}  b6 {[%clk 0:02:32]} 17. cxd6 {[%clk 0:01:58]}  cxd6 {[%clk 0:02:31]} 18. Bb4 {[%clk 0:01:39]}  Rb8 {[%clk 0:02:30]} 19. axb6 {[%clk 0:01:38]}  axb6 {[%clk 0:02:31]} 20. Ra7 {[%clk 0:01:34]}  Rh7 {[%clk 0:02:16]} 21. Na4 {[%clk 0:01:31]}  g5 {[%clk 0:02:10]} 22. Naxb6 {[%clk 0:01:28]}  g4 {[%clk 0:01:27]} 23. Nxc8 {[%clk 0:01:26]}  Nxc8 {[%clk 0:01:22]} 24. Rxh7 {[%clk 0:01:25]}  Kxh7 {[%clk 0:01:23]} 25. Nxe5 {[%clk 0:01:09]}  dxe5 {[%clk 0:01:19]} 26. Bxf8 {[%clk 0:01:09]}  Ned6 {[%clk 0:01:17]} 27. Bxd6 {[%clk 0:01:09]}  Nxd6 {[%clk 0:01:17]} 28. Qa1 {[%clk 0:01:04]}  Qg5 {[%clk 0:01:09]} 29. Rc1 {[%clk 0:00:57]}  Rb7 {[%clk 0:00:57]} 30. Rc6 {[%clk 0:00:51]}  f3 {[%clk 0:00:30]} 31. Bf1 {[%clk 0:00:51]}  Nf7 {[%clk 0:00:13]} 32. Qa6 {[%clk 0:00:47]}  Re7 {[%clk 0:00:09]} 33. d6 {[%clk 0:00:35]}  Re8 {[%clk 0:00:08]} 34. Rc7 {[%clk 0:00:31]}  Rf8 {[%clk 0:00:08]} 35. Qb7 {[%clk 0:00:22]}  Kg7 {[%clk 0:00:08]} 36. Qd5 {[%clk 0:00:22]}  Kf6 {[%clk 0:00:08]} 37. d7 {[%clk 0:00:21]}  Nd8 {[%clk 0:00:06]} 38. Rc6+ {[%clk 0:00:15]}  Kg7 {[%clk 0:00:07]} 39. Rc5 {[%clk 0:00:14]}  Kf6 {[%clk 0:00:06]} 40. Qd6+ {[%clk 0:00:14]}  Kg7 {[%clk 0:00:05]} 41. Qxe5+ {[%clk 0:00:14]}  Qxe5 {[%clk 0:00:05]} 42. Rxe5 {[%clk 0:00:14]}  Kg6 {[%clk 0:00:05]} 43. gxf3 {[%clk 0:00:13]}  gxf3 {[%clk 0:00:05]} 44. h4 {[%clk 0:00:13]}  Kf6 {[%clk 0:00:05]} 45. Rf5+ {[%clk 0:00:13]}  Ke7 {[%clk 0:00:05]} 46. Rxf8 {[%clk 0:00:13]}  Kxf8 {[%clk 0:00:06]} 47. Kh2 {[%clk 0:00:13]}  Ke7 {[%clk 0:00:07]} 48. Bh3 {[%clk 0:00:13]}  Kd6 {[%clk 0:00:08]} 49. Kg3 {[%clk 0:00:14]}  Kc5 {[%clk 0:00:08]} 50. Kxf3 {[%clk 0:00:14]}  Kxb5 {[%clk 0:00:09]} 51. Kf4 {[%clk 0:00:15]} 1-0


[Site "https://www.chess.com"]

[Event "Titled Tuesday Blitz March 21 Early 2023"]
[White "Moroni, Luca Jr"]
[Black "Fromm, Marius"]
[WhiteFideId "865834"]
[BlackFideId "12993190"]
[WhiteElo "2569"]
[BlackElo "2325"]
[Result "1/2-1/2"]
[Round "03"]
[TimeControl "180+2"]
[Date "2023.03.21"]
[WhiteClock "0:00:07"]
[BlackClock "0:00:12"]

1. d4 {[%clk 0:03:00]}  d5 {[%clk 0:02:59]} 2. Bf4 {[%clk 0:03:00]}  Nf6 {[%clk 0:02:59]} 3. e3 {[%clk 0:03:00]}  e6 {[%clk 0:03:00]} 4. Nf3 {[%clk 0:03:00]}  Bd6 {[%clk 0:03:00]} 5. Nbd2 {[%clk 0:03:00]}  c5 {[%clk 0:03:00]} 6. dxc5 {[%clk 0:03:00]}  Bxc5 {[%clk 0:03:00]} 7. Bd3 {[%clk 0:03:00]}  O-O {[%clk 0:02:58]} 8. O-O {[%clk 0:03:00]}  Nbd7 {[%clk 0:02:51]} 9. h3 {[%clk 0:02:58]}  Be7 {[%clk 0:02:51]} 10. Qe2 {[%clk 0:02:58]}  Nc5 {[%clk 0:02:51]} 11. Rad1 {[%clk 0:02:50]}  Qb6 {[%clk 0:02:46]} 12. Be5 {[%clk 0:02:43]}  Nxd3 {[%clk 0:02:40]} 13. Qxd3 {[%clk 0:02:42]}  Bd7 {[%clk 0:02:39]} 14. c4 {[%clk 0:02:33]}  Qa6 {[%clk 0:02:37]} 15. b3 {[%clk 0:02:23]}  dxc4 {[%clk 0:02:28]} 16. Nxc4 {[%clk 0:02:24]}  Bb5 {[%clk 0:02:28]} 17. Nfd2 {[%clk 0:02:14]}  Rfd8 {[%clk 0:02:22]} 18. Qb1 {[%clk 0:02:13]}  Nd5 {[%clk 0:02:07]} 19. a4 {[%clk 0:02:09]}  Bc6 {[%clk 0:02:03]} 20. Ne4 {[%clk 0:02:07]}  b5 {[%clk 0:01:52]} 21. axb5 {[%clk 0:01:54]}  Bxb5 {[%clk 0:01:53]} 22. Rc1 {[%clk 0:01:49]}  f6 {[%clk 0:01:51]} 23. Bd4 {[%clk 0:01:43]}  Rac8 {[%clk 0:01:49]} 24. f4 {[%clk 0:01:24]}  Nb4 {[%clk 0:01:41]} 25. Rfd1 {[%clk 0:01:17]}  Bxc4 {[%clk 0:01:31]} 26. bxc4 {[%clk 0:01:17]}  Rxc4 {[%clk 0:01:31]} 27. Rxc4 {[%clk 0:00:29]}  Qxc4 {[%clk 0:01:32]} 28. Rc1 {[%clk 0:00:29]}  Qd5 {[%clk 0:00:53]} 29. Rc7 {[%clk 0:00:27]}  Rd7 {[%clk 0:00:53]} 30. Rxa7 {[%clk 0:00:14]}  Rxa7 {[%clk 0:00:54]} 31. Bxa7 {[%clk 0:00:14]}  f5 {[%clk 0:00:34]} 32. Nf2 {[%clk 0:00:07]}  Bc5 {[%clk 0:00:26]} 33. Bxc5 {[%clk 0:00:07]}  Qxc5 {[%clk 0:00:27]} 34. Qb3 {[%clk 0:00:05]}  Nd5 {[%clk 0:00:26]} 35. Nd1 {[%clk 0:00:04]}  h6 {[%clk 0:00:23]} 36. Kh2 {[%clk 0:00:04]}  Kh7 {[%clk 0:00:20]} 37. Qd3 {[%clk 0:00:05]}  Qc1 {[%clk 0:00:19]} 38. Qe2 {[%clk 0:00:05]}  Nc3 {[%clk 0:00:17]} 39. Nxc3 {[%clk 0:00:04]}  Qxc3 {[%clk 0:00:18]} 40. Qf3 {[%clk 0:00:04]}  Qd3 {[%clk 0:00:18]} 41. Qf2 {[%clk 0:00:04]}  Qe4 {[%clk 0:00:18]} 42. g4 {[%clk 0:00:04]}  e5 {[%clk 0:00:15]} 43. Kg3 {[%clk 0:00:03]}  exf4+ {[%clk 0:00:14]} 44. Qxf4 {[%clk 0:00:03]}  Qxf4+ {[%clk 0:00:12]} 45. Kxf4 {[%clk 0:00:03]}  fxg4 {[%clk 0:00:11]} 46. hxg4 {[%clk 0:00:04]}  Kg6 {[%clk 0:00:10]} 47. e4 {[%clk 0:00:02]}  Kf6 {[%clk 0:00:10]} 48. e5+ {[%clk 0:00:02]}  Ke6 {[%clk 0:00:11]} 49. Ke4 {[%clk 0:00:03]}  g6 {[%clk 0:00:11]} 50. Kf4 {[%clk 0:00:03]}  h5 {[%clk 0:00:11]} 51. gxh5 {[%clk 0:00:04]}  gxh5 {[%clk 0:00:12]} 52. Kg5 {[%clk 0:00:05]}  Kxe5 {[%clk 0:00:12]} 53. Kh4 {[%clk 0:00:06]}  Kf6 {[%clk 0:00:12]} 54. Kxh5 {[%clk 0:00:07]} 1/2-1/2


[Site "https://www.chess.com"]

[Event "Titled Tuesday Blitz March 21 Early 2023"]
[White "Dardha, Daniel"]
[Black "Tillyaev, Ulugbek"]
[WhiteFideId "240990"]
[BlackFideId "14202441"]
[WhiteElo "2581"]
[BlackElo "2377"]
[Result "0-1"]
[Round "03"]
[TimeControl "180+2"]
[Date "2023.03.21"]
[WhiteClock "0:00:04"]
[BlackClock "0:00:26"]

1. Nf3 {[%clk 0:03:00]}  c5 {[%clk 0:02:58]} 2. e4 {[%clk 0:03:00]}  g6 {[%clk 0:02:57]} 3. d4 {[%clk 0:03:00]}  cxd4 {[%clk 0:02:57]} 4. Nxd4 {[%clk 0:03:01]}  Bg7 {[%clk 0:02:56]} 5. c4 {[%clk 0:03:00]}  Nc6 {[%clk 0:02:55]} 6. Be3 {[%clk 0:03:00]}  Nf6 {[%clk 0:02:53]} 7. Nc3 {[%clk 0:02:59]}  Ng4 {[%clk 0:02:43]} 8. Qxg4 {[%clk 0:02:58]}  Nxd4 {[%clk 0:02:43]} 9. Qd1 {[%clk 0:02:58]}  Ne6 {[%clk 0:02:43]} 10. Qd2 {[%clk 0:02:58]}  d6 {[%clk 0:02:37]} 11. Be2 {[%clk 0:02:57]}  O-O {[%clk 0:02:37]} 12. O-O {[%clk 0:02:57]}  Nc5 {[%clk 0:02:34]} 13. f3 {[%clk 0:02:55]}  Bd7 {[%clk 0:02:31]} 14. Rab1 {[%clk 0:02:55]}  a5 {[%clk 0:02:24]} 15. b3 {[%clk 0:02:54]}  Bc6 {[%clk 0:02:22]} 16. Rfd1 {[%clk 0:02:49]}  f5 {[%clk 0:02:16]} 17. exf5 {[%clk 0:02:48]}  Rxf5 {[%clk 0:02:14]} 18. Bd4 {[%clk 0:02:41]}  Bxd4+ {[%clk 0:02:09]} 19. Qxd4 {[%clk 0:02:42]}  Ne6 {[%clk 0:02:08]} 20. Qe3 {[%clk 0:02:42]}  Re5 {[%clk 0:02:06]} 21. Qf2 {[%clk 0:02:32]}  Qf8 {[%clk 0:02:04]} 22. Re1 {[%clk 0:02:32]}  Nf4 {[%clk 0:02:02]} 23. Bf1 {[%clk 0:02:17]}  Nh3+ {[%clk 0:02:01]} 24. gxh3 {[%clk 0:02:15]}  Rg5+ {[%clk 0:02:02]} 25. Bg2 {[%clk 0:01:58]}  Bxf3 {[%clk 0:02:01]} 26. Rf1 {[%clk 0:01:44]}  Bxg2 {[%clk 0:02:01]} 27. Qxf8+ {[%clk 0:01:18]}  Rxf8 {[%clk 0:02:00]} 28. Rxf8+ {[%clk 0:01:18]}  Kxf8 {[%clk 0:01:59]} 29. h4 {[%clk 0:01:19]}  Rg4 {[%clk 0:01:58]} 30. Kf2 {[%clk 0:01:14]}  Bc6 {[%clk 0:01:56]} 31. a3 {[%clk 0:01:08]}  Rg2+ {[%clk 0:01:50]} 32. Ke3 {[%clk 0:01:07]}  Rxh2 {[%clk 0:01:51]} 33. b4 {[%clk 0:01:07]}  axb4 {[%clk 0:01:48]} 34. axb4 {[%clk 0:01:07]}  Rh3+ {[%clk 0:01:47]} 35. Kd2 {[%clk 0:01:08]}  Rxh4 {[%clk 0:01:45]} 36. b5 {[%clk 0:01:08]}  Be8 {[%clk 0:01:39]} 37. Kd3 {[%clk 0:00:56]}  g5 {[%clk 0:01:34]} 38. Rf1+ {[%clk 0:00:57]}  Kg7 {[%clk 0:01:32]} 39. Nd5 {[%clk 0:00:57]}  Bg6+ {[%clk 0:01:29]} 40. Kc3 {[%clk 0:00:57]}  e6 {[%clk 0:01:22]} 41. Nc7 {[%clk 0:00:57]}  Bf7 {[%clk 0:01:19]} 42. b6 {[%clk 0:00:57]}  e5 {[%clk 0:01:16]} 43. Rg1 {[%clk 0:00:34]}  Rxc4+ {[%clk 0:01:11]} 44. Kd3 {[%clk 0:00:35]}  Rd4+ {[%clk 0:01:11]} 45. Ke3 {[%clk 0:00:35]}  g4 {[%clk 0:01:09]} 46. Nb5 {[%clk 0:00:34]}  Rf4 {[%clk 0:00:53]} 47. Nxd6 {[%clk 0:00:34]}  Bd5 {[%clk 0:00:53]} 48. Rd1 {[%clk 0:00:31]}  Bc6 {[%clk 0:00:52]} 49. Rc1 {[%clk 0:00:31]}  g3 {[%clk 0:00:49]} 50. Nc4 {[%clk 0:00:26]}  g2 {[%clk 0:00:46]} 51. Nd2 {[%clk 0:00:16]}  h5 {[%clk 0:00:38]} 52. Kd3 {[%clk 0:00:06]}  h4 {[%clk 0:00:36]} 53. Nc4 {[%clk 0:00:06]}  Rf1 {[%clk 0:00:33]} 54. Nxe5 {[%clk 0:00:03]}  Rxc1 {[%clk 0:00:31]} 55. Nf3 {[%clk 0:00:02]}  Bxf3 {[%clk 0:00:30]} 56. Kd2 {[%clk 0:00:03]}  g1=Q {[%clk 0:00:30]} 57. Kd3 {[%clk 0:00:04]}  Qxb6 {[%clk 0:00:28]} 58. Kd2 {[%clk 0:00:03]}  Rd1+ {[%clk 0:00:28]} 59. Kc3 {[%clk 0:00:03]}  Qd4+ {[%clk 0:00:27]} 60. Kb3 {[%clk 0:00:03]}  Bd5+ {[%clk 0:00:28]} 61. Kc2 {[%clk 0:00:04]}  Qd2# {[%clk 0:00:26]} 0-1


[Site "https://www.chess.com"]

[Event "Titled Tuesday Blitz March 21 Early 2023"]
[White "Nogerbek, Kazybek"]
[Black "Rios Escobar, Adan"]
[WhiteFideId "13710427"]
[BlackFideId "3403645"]
[WhiteElo "2501"]
[BlackElo "2399"]
[Result "1-0"]
[Round "03"]
[TimeControl "180+2"]
[Date "2023.03.21"]
[WhiteClock "0:00:04"]
[BlackClock "0:00:02"]

1. e4 {[%clk 0:02:56]}  c5 {[%clk 0:02:59]} 2. Nf3 {[%clk 0:02:56]}  d6 {[%clk 0:03:00]} 3. Bb5+ {[%clk 0:02:52]}  Nd7 {[%clk 0:02:59]} 4. d4 {[%clk 0:02:51]}  cxd4 {[%clk 0:02:58]} 5. Qxd4 {[%clk 0:02:52]}  a6 {[%clk 0:02:54]} 6. Be2 {[%clk 0:02:52]}  e5 {[%clk 0:02:53]} 7. Qe3 {[%clk 0:02:51]}  Ngf6 {[%clk 0:02:38]} 8. O-O {[%clk 0:02:51]}  b5 {[%clk 0:02:27]} 9. c4 {[%clk 0:02:48]}  bxc4 {[%clk 0:02:14]} 10. Nc3 {[%clk 0:02:46]}  Be7 {[%clk 0:02:12]} 11. Nd2 {[%clk 0:02:42]}  Bb7 {[%clk 0:02:08]} 12. Nxc4 {[%clk 0:02:42]}  O-O {[%clk 0:02:07]} 13. b4 {[%clk 0:02:36]}  d5 {[%clk 0:02:01]} 14. Nxd5 {[%clk 0:02:18]}  Nxd5 {[%clk 0:01:59]} 15. exd5 {[%clk 0:02:19]}  Bxd5 {[%clk 0:02:00]} 16. a3 {[%clk 0:02:18]}  Bf6 {[%clk 0:01:53]} 17. Bb2 {[%clk 0:02:16]}  Qe7 {[%clk 0:01:35]} 18. Rfd1 {[%clk 0:02:07]}  Qe6 {[%clk 0:01:32]} 19. Na5 {[%clk 0:01:59]}  Rfc8 {[%clk 0:01:19]} 20. h3 {[%clk 0:01:58]}  h6 {[%clk 0:01:19]} 21. Bg4 {[%clk 0:01:54]}  Qd6 {[%clk 0:01:09]} 22. Qd3 {[%clk 0:01:33]}  Nb6 {[%clk 0:01:05]} 23. Bxc8 {[%clk 0:01:33]}  Rxc8 {[%clk 0:01:06]} 24. Qxa6 {[%clk 0:01:30]}  Rc2 {[%clk 0:00:56]} 25. Rab1 {[%clk 0:01:08]}  Qe6 {[%clk 0:00:51]} 26. Rxd5 {[%clk 0:00:50]}  Qxd5 {[%clk 0:00:23]} 27. Qxb6 {[%clk 0:00:49]}  Bh4 {[%clk 0:00:23]} 28. Rf1 {[%clk 0:00:20]}  Rxb2 {[%clk 0:00:20]} 29. Qc6 {[%clk 0:00:15]}  Qd2 {[%clk 0:00:17]} 30. Qc8+ {[%clk 0:00:13]}  Bd8 {[%clk 0:00:14]} 31. Nc6 {[%clk 0:00:11]}  Kh7 {[%clk 0:00:10]} 32. Qf5+ {[%clk 0:00:08]}  Kg8 {[%clk 0:00:08]} 33. Qc8 {[%clk 0:00:09]}  Kh7 {[%clk 0:00:08]} 34. Qxd8 {[%clk 0:00:09]}  Qc2 {[%clk 0:00:07]} 35. Qd5 {[%clk 0:00:08]}  Ra2 {[%clk 0:00:07]} 36. Nxe5 {[%clk 0:00:06]}  Rxa3 {[%clk 0:00:06]} 37. Qxf7 {[%clk 0:00:07]}  Qe4 {[%clk 0:00:04]} 38. Ng4 {[%clk 0:00:07]}  Ra6 {[%clk 0:00:02]} 39. b5 {[%clk 0:00:06]}  Rg6 {[%clk 0:00:03]} 40. Qf3 {[%clk 0:00:05]}  Qb4 {[%clk 0:00:02]} 41. Qf5 {[%clk 0:00:04]} 1-0


[Site "https://www.chess.com"]